bitfinex-derivatives/quotes_ETHF0:USTF0_20250614
["timestamp","ask_amount","ask_price","bid_price","bid_amount"]
[1749897947294,3.99766,2531.1,2531.0,30.278]
[1749897947797,0.78995,2530.8,2530.7,2.36167402]
[1749897948100,0.78995,2530.8,2530.7,32.63967402]
[1749897949695,0.78995,2530.8,2530.7,32.63367402]
[1749897949891,0.78995,2530.8,2530.7,1.57169402]
[1749897950091,0.78995,2530.8,2530.6,6.204]
[1749897950092,0.78998,2530.7,2530.6,6.204]
[1749897950301,1.47258,2530.7,2530.6,30.272]
[1749897951400,1.47258,2530.7,2530.6,31.06201]
[1749897952000,1.47258,2530.7,2530.6,30.272]
[1749897953401,1.47258,2530.7,2530.6,24.85801]
[1749897956207,1.47258,2530.7,2530.6,24.068]
[1749897956502,0.79001,2530.6,2530.5,0.00592639]
[1749897956695,1.44021,2530.6,2530.5,24.07292639]
[1749897958399,1.44021,2530.6,2530.5,24.86296639]
[1749897958799,1.44021,2530.6,2530.5,24.86396639]
[1749897958999,1.44021,2530.6,2530.5,24.07392639]
[1749897959808,1.44021,2530.6,2530.5,0.00592639]
[1749897960000,1.44021,2530.6,2530.5,24.07392639]
[1749897960400,1.44021,2530.6,2530.5,24.86396639]
[1749897961807,1.44021,2530.6,2530.5,24.07392639]
[1749897962510,1.44021,2530.6,2530.5,24.86396639]
[1749897963807,1.44021,2530.6,2530.5,24.07392639]
[1749897964404,1.44021,2530.6,2530.5,24.86396639]
[1749897965009,1.44021,2530.6,2530.5,24.07392639]
[1749897965303,1.44021,2530.6,2530.5,24.86396639]
[1749897965709,1.50830268,2530.6,2530.5,24.86396639]
[1749897967410,0.85810268,2530.6,2530.5,24.86396639]
[1749897968409,0.06809268,2530.6,2530.5,28.07176639]
[1749897968709,0.85810268,2530.6,2530.5,28.07176639]
[1749897968904,0.06809268,2530.6,2530.5,28.07176639]
[1749897969110,0.06809268,2530.6,2530.5,28.70246639]
[1749897969323,0.06809268,2530.6,2530.5,29.37796639]
[1749897970610,0.06809268,2530.6,2530.5,30.64266639]
[1749897974712,0.06809268,2530.6,2530.5,32.21436041]
[1749897975911,0.78993,2530.9,2530.8,0.78995]
[1749897976111,0.78993,2530.9,2530.8,24.85495]
[1749897976512,0.78993,2530.9,2530.8,26.82355]
[1749897976714,4.00362639,2531.0,2530.9,0.78992]
[1749897977007,0.00592639,2531.0,2530.9,5.31802]
[1749897977613,0.79581639,2531.0,2530.9,5.31802]
[1749897977814,0.00592639,2531.0,2530.9,5.31802]
[1749897978218,0.79581639,2531.0,2530.9,5.31802]
[1749897980115,0.86390907,2531.0,2530.9,5.31802]
[1749897980609,0.07401907,2531.0,2530.9,5.31802]
[1749897982107,0.07401907,2531.0,2530.9,6.88971402]
[1749897982308,0.07401907,2531.0,2530.9,5.31802]
[1749897983910,0.07401907,2531.0,2530.9,2.11022]
[1749897984113,0.07401907,2531.0,2530.9,5.31802]
[1749897986412,0.86390907,2531.0,2530.9,5.31802]
[1749897986613,0.86390907,2531.0,2530.9,29.37702]
[1749897987715,0.86390907,2531.0,2530.9,28.05672]
[1749897988215,0.07401907,2531.0,2530.9,28.05672]
[1749897988415,0.07401907,2531.0,2530.9,3.99772]
[1749897988613,0.86390907,2531.0,2530.9,34.25572]
[1749897990116,0.07401907,2531.0,2530.9,34.25572]
[1749897991121,0.86390907,2531.0,2530.9,10.19772]
[1749897991320,0.86390907,2531.0,2530.9,3.99772]
[1749897991620,0.86390907,2531.0,2530.9,34.25372]
[1749897993521,0.78992,2530.9,2530.8,0.6483]
[1749897993719,0.6698,2530.9,2530.6,3.2078]
[1749897993921,0.78998,2530.8,2530.7,30.255]
[1749897994220,0.78998,2530.8,2530.7,31.04495]
[1749897995021,1.45974,2530.9,2530.8,0.78995]
[1749897996018,1.45974,2530.9,2530.6,3.2078]
[1749897996325,0.78998,2530.7,2530.6,10.1978]
[1749897996522,0.78998,2530.7,2530.6,34.2538]
[1749897999518,0.78997,2530.8,2530.7,0.78995]
[1749897999717,0.78997,2530.8,2530.7,1.42205]
[1749898000426,1.45975,2530.9,2530.8,0.78995]
[1749898000620,1.45975,2530.9,2530.8,24.84595]
[1749898001126,1.45975,2530.9,2530.8,24.056]
[1749898003726,0.78995,2530.8,2530.7,0.6321]
[1749898003925,0.78995,2530.8,2530.7,30.8881]
[1749898004725,0.78995,2530.8,2530.7,0.6321]
[1749898004926,0.78995,2530.8,2530.7,30.256]
[1749898005129,0.78998,2530.7,2530.6,9.4078]
[1749898005325,0.78998,2530.7,2530.6,34.25378]
[1749898005827,0.78998,2530.7,2530.6,34.25381]
[1749898006021,1.44428,2530.7,2530.6,34.25381]
[1749898007032,1.44428,2530.7,2530.6,34.91421]
[1749898007627,0.78998,2530.7,2530.6,34.91421]
[1749898008530,0.78995,2530.9,2530.8,0.78992]
[1749898010219,0.68912639,2531.0,2530.7,1.97495]
[1749898010527,0.78993,2530.9,2530.8,0.78992]
[1749898012033,0.79584639,2531.0,2530.9,0.78992]
[1749898012330,0.00592639,2531.0,2530.9,1.41622]
[1749898012522,0.00592639,2531.0,2530.9,5.89232]
[1749898012722,3.2078,2531.5,2531.4,0.78976]
[1749898013022,3.99753,2531.5,2531.4,24.84376]
[1749898013427,3.99753,2531.5,2531.4,24.7137]
[1749898014424,3.99753,2531.5,2531.4,25.50346]
[1749898014829,3.99753,2531.5,2531.4,24.7137]
[1749898016324,3.99753,2531.5,2531.4,25.50346]
[1749898018132,3.2078,2531.5,2531.4,25.50346]
[1749898018324,0.78972,2531.6,2531.5,0.78973]
[1749898018523,0.78972,2531.6,2531.5,2.04303]
[1749898019024,0.78972,2531.6,2531.5,1.2533]
[1749898019832,0.78972,2531.6,2531.5,2.04303]
[1749898021430,0.78972,2531.6,2531.5,1.2533]
[1749898022535,0.78973,2531.5,2531.4,25.50345]
[1749898023431,0.78973,2531.5,2531.4,0.6597]
[1749898023623,1.97813929,2531.7,2531.6,0.7897]
[1749898023624,0.00390929,2531.7,2531.6,0.7897]
[1749898023825,0.00390929,2531.7,2531.6,29.60911855]
[1749898024025,0.00390929,2531.7,2531.6,33.0435]
[1749898024233,0.00390929,2531.7,2531.6,34.388]
[1749898024936,0.00390929,2531.7,2531.6,35.95244603]
[1749898026331,0.00390929,2531.7,2531.6,36.26527783]
[1749898027231,0.00390929,2531.7,2531.6,34.7008318]
[1749898027438,0.00390929,2531.7,2531.6,36.26527783]
[1749898027628,0.78942,2532.6,2532.5,0.78938]
[1749898028228,0.78942,2532.6,2532.4,24.043]
[1749898028229,3.99714,2532.8,2532.7,0.78936]
[1749898028431,0.78939,2532.7,2532.6,24.83236]
[1749898028634,0.78939,2532.7,2532.6,24.043]
[1749898028830,0.78942,2532.5,2532.4,6.98837639]
[1749898029035,0.78941,2532.6,2532.5,0.7894]
[1749898030737,0.78941,2532.6,2532.5,1.4666]
[1749898032339,0.78942,2532.5,2532.4,0.00592639]
[1749898032538,0.78942,2532.5,2532.4,30.23792639]
[1749898033136,0.78942,2532.5,2532.4,0.00592639]
[1749898033442,0.78942,2532.5,2532.4,30.23792639]
[1749898034540,0.78942,2532.5,2532.4,0.00592639]
[1749898035037,2.10892,2532.5,2532.4,0.00592639]
[1749898037647,2.10892,2532.5,2532.4,0.79537639]
[1749898037943,4.87292,2532.5,2532.4,0.79537639]
[1749898038142,4.87292,2532.5,2532.4,0.00592639]
[1749898038543,4.87292,2532.5,2532.4,0.79537639]
[1749898039646,3.55342,2532.5,2532.4,0.79537639]
[1749898039843,3.62151268,2532.5,2532.4,0.79537639]
[1749898040948,2.83209268,2532.5,2532.4,0.79537639]
[1749898041145,2.83209268,2532.5,2532.4,2.74127639]
[1749898043346,3.62151268,2532.5,2532.4,2.74127639]
[1749898043737,2.83209268,2532.5,2532.4,2.74127639]
[1749898047350,2.36443581,2533.6,2532.7,3.2078]
[1749898047645,1.97231,2534.1,2533.5,3.2078]
[1749898047850,1.97231,2534.1,2533.5,9.3968]
[1749898047851,0.78908,2533.6,2533.5,9.3968]
[1749898048047,0.78908,2533.6,2533.5,33.4718]
[1749898048349,1.8796,2533.8,2533.5,34.26089]
[1749898048544,0.78908,2533.6,2533.5,34.2609]
[1749898048847,2.71997,2533.7,2533.5,34.2609]
[1749898049052,2.71997,2533.7,2533.6,0.78908]
[1749898050350,2.71997,2533.7,2533.5,3.2078]
[1749898050351,0.78908,2533.6,2533.5,3.2078]
[1749898050645,2.12788,2533.6,2533.5,3.2078]
[1749898050848,2.12788,2533.6,2533.5,3.99691]
[1749898051545,1.46597,2533.7,2533.6,0.78908]
[1749898051853,0.6769,2533.7,2533.6,0.78908]
[1749898053853,3.27650701,2534.1,2533.9,0.78896]
[1749898054045,0.6901,2534.0,2533.9,0.78896]
[1749898054649,1.47905,2534.0,2533.9,0.78896]
[1749898054842,4.74334701,2534.1,2534.0,0.78895]
[1749898055248,1.53554701,2534.1,2534.0,0.78895]
[1749898055443,1.53554701,2534.1,2534.0,3.99675]
[1749898058554,0.78889,2534.3,2534.0,3.2078]
[1749898058756,0.78892,2534.2,2534.1,0.78888]
[1749898059454,0.78892,2534.1,2534.0,4.67673]
[1749898060458,0.78891,2534.2,2534.1,0.78889]
[1749898063950,0.78889,2534.2,2534.1,3.2078]
[1749898064357,2.05969,2534.2,2534.1,3.2078]
[1749898065355,0.78889,2534.2,2534.1,3.2078]
[1749898066156,0.78901,2533.8,2533.7,3.88522639]
[1749898066364,0.78901,2533.8,2533.7,1.46647639]
[1749898067272,0.789,2533.9,2533.8,0.78898]
[1749898068173,0.6505,2534.2,2533.7,34.34822639]
[1749898068174,0.78897,2534.0,2533.9,0.78895]
[1749898072087,0.78896,2534.1,2534.0,0.78893]
[1749898073781,0.78898,2534.0,2533.9,0.78896]
[1749898077288,0.78894,2534.1,2534.0,0.78892]
[1749898079079,0.78898,2534.0,2533.9,0.78896]
[1749898079879,2.62279,2534.2,2533.8,2.69479]
[1749898079880,0.78898,2533.9,2533.8,2.69479]
[1749898080276,0.78898,2533.9,2533.8,1.9058]
[1749898080477,0.78898,2533.9,2533.8,31.2134]
[1749898080678,0.78901,2533.8,2533.7,3.88522639]
[1749898080881,0.78901,2533.8,2533.7,0.00592639]
[1749898080882,1.45111,2533.8,2533.7,0.00592639]
[1749898081486,2.17740268,2533.8,2533.7,0.00592639]
[1749898081681,3.55490268,2533.8,2533.7,0.00592639]
[1749898085489,0.78911,2533.5,2533.4,3.2078]
[1749898100290,0.78911,2533.5,2533.4,4.4784]
[1749898100793,0.85720268,2533.5,2533.4,4.4784]
[1749898101695,0.85720268,2533.5,2533.4,5.26754]
[1749898101994,0.85720268,2533.5,2533.4,4.4784]
[1749898103699,0.85720268,2533.5,2533.4,3.2078]
[1749898107095,0.78914,2533.4,2533.3,0.6899]
[1749898109793,0.78914,2533.4,2533.3,1.9805]
[1749898110195,0.78914,2533.4,2533.3,2.76967]
[1749898110508,0.78914,2533.4,2533.3,1.9805]
[1749898111493,0.78914,2533.4,2533.3,3.54349257]
[1749898111893,0.78914,2533.4,2533.3,1.9805]
[1749898113600,0.78914,2533.4,2533.3,0.6899]
[1749898115696,0.78914,2533.4,2533.3,2.0673]
[1749898116098,0.85723268,2533.4,2533.3,2.0673]
[1749898129004,0.85723268,2533.4,2533.3,0.6899]
[1749898129615,0.78917,2533.3,2533.2,1.56891896]
[1749898129810,0.78917,2533.3,2533.2,2.25241896]
[1749898134919,0.78917,2533.3,2533.2,0.00592639]
[1749898136410,0.7893,2532.9,2532.8,3.2078]
[1749898136617,0.78933,2532.8,2532.7,0.6687]
[1749898145523,0.85742268,2532.8,2532.7,0.6687]
[1749898149619,0.78939,2532.6,2532.5,0.00592639]
[1749898151325,0.78939,2532.6,2532.5,0.79534639]
[1749898151625,0.78939,2532.6,2532.5,2.11104639]
[1749898151930,0.78939,2532.6,2532.5,1.32162639]
[1749898160642,0.85748268,2532.6,2532.5,1.32162639]
[1749898162344,0.85748268,2532.6,2532.5,2.11104639]
[1749898162539,0.85748268,2532.6,2532.5,0.00592639]
[1749898162942,4.06528268,2532.6,2532.5,0.00592639]
[1749898165541,4.72668268,2532.6,2532.5,0.00592639]
[1749898166745,4.06528268,2532.6,2532.5,0.00592639]
[1749898166947,0.85748268,2532.6,2532.5,0.79534639]
[1749898167447,0.06809268,2532.6,2532.5,0.79534639]
[1749898167749,0.06809268,2532.6,2532.5,2.73424639]
[1749898168048,0.85748268,2532.6,2532.5,2.73424639]
[1749898170247,0.06809268,2532.6,2532.5,7.73424639]
[1749898170445,0.06809268,2532.6,2532.5,9.29723896]
[1749898170849,0.7893,2533.0,2532.9,0.78927]
[1749898171545,0.7893,2533.0,2532.9,2.12937]
[1749898171943,0.78925,2533.1,2533.0,0.78923]
[1749898172646,0.78926,2533.0,2532.9,1.3401]
[1749898173646,0.78926,2533.1,2533.0,0.78923]
[1749898175350,3.99702,2533.2,2533.1,0.78923]
[1749898181659,0.78923,2533.1,2533.0,2.16814]
[1749898181859,0.78929,2532.9,2532.8,6.8721]
[1749898182362,0.78929,2532.9,2532.8,6.197]
[1749898183159,1.44369,2532.9,2532.8,6.197]
[1749898183559,1.44369,2532.9,2532.8,6.98633]
[1749898184157,1.44369,2532.9,2532.8,6.197]
[1749898185162,1.44369,2532.9,2532.8,6.98633]
[1749898186065,0.78929,2532.9,2532.8,6.98633]
[1749898187958,0.78929,2532.9,2532.8,0.78933]
[1749898188863,0.78929,2532.9,2532.8,1.45833]
[1749898190267,3.23819,2532.9,2532.8,1.45833]
[1749898190865,3.23819,2532.9,2532.8,0.78933]
[1749898191068,3.30628268,2532.9,2532.8,0.78933]
[1749898194072,3.30628268,2532.9,2532.8,3.99713]
[1749898200369,3.30628268,2532.9,2532.8,5.56507991]
[1749898202173,2.51699268,2532.9,2532.8,5.56507991]
[1749898202371,2.51699268,2532.9,2532.8,6.92597991]
[1749898202568,2.51699268,2532.9,2532.8,10.35803]
[1749898207678,2.51699268,2532.9,2532.8,37.94551378]
[1749898207974,3.30629268,2532.9,2532.8,35.59603]
[1749898208681,3.30629268,2532.9,2532.8,37.16208028]
[1749898209585,3.30629268,2532.9,2532.8,37.16182001]
[1749898210081,2.51699268,2532.9,2532.8,37.16182001]
[1749898210279,2.51699268,2532.9,2532.8,35.59603]
[1749898219986,2.51699268,2532.9,2532.8,37.94551378]
[1749898221483,2.51699268,2532.9,2532.8,35.59603]
[1749898222179,2.51699268,2532.9,2532.8,34.23413]
[1749898222379,2.51699268,2532.9,2532.8,36.58397941]
[1749898226493,3.30629268,2532.9,2532.8,12.54297941]
[1749898226788,3.30629268,2532.9,2532.8,34.23413]
[1749898226990,2.51699268,2532.9,2532.8,3.99713]
[1749898227293,2.51699268,2532.9,2532.8,36.58297941]
[1749898229294,3.30629268,2532.9,2532.8,34.23313]
[1749898229486,3.30629268,2532.9,2532.8,35.80075532]
[1749898230290,2.51699268,2532.9,2532.8,35.80075532]
[1749898230885,2.51699268,2532.9,2532.8,34.23313]
[1749898231495,3.30628268,2532.9,2532.8,34.23313]
[1749898231694,2.51699268,2532.9,2532.8,34.23313]
[1749898234489,3.30629268,2532.9,2532.8,34.23313]
[1749898234995,2.51699268,2532.9,2532.8,34.23313]
[1749898235797,2.51699268,2532.9,2532.8,36.58297941]
[1749898236292,2.51699268,2532.9,2532.8,34.23313]
[1749898236591,2.51699268,2532.9,2532.8,36.58297941]
[1749898236894,3.30629268,2532.9,2532.8,36.58297941]
[1749898237094,2.51699268,2532.9,2532.8,36.58297941]
[1749898237290,3.30629268,2532.9,2532.8,12.54297941]
[1749898237492,3.30629268,2532.9,2532.8,1.56862982]
[1749898237695,10.76178268,2532.9,2532.5,2.36395621]
[1749898237882,0.78939,2532.6,2532.5,1.57455621]
[1749898238089,0.78939,2532.6,2532.5,24.04492639]
[1749898238893,2.11589,2532.6,2532.5,24.04492639]
[1749898239896,1.3162,2532.7,2532.6,0.78939]
[1749898240896,2.10558,2532.7,2532.6,0.78939]
[1749898241192,0.78939,2532.6,2532.5,28.04212639]
[1749898242400,2.10558,2532.7,2532.6,0.78939]
[1749898250099,0.78939,2532.6,2532.5,28.04212639]
[1749898251093,0.78939,2532.6,2532.5,24.83432639]
[1749898253704,0.78939,2532.6,2532.5,0.79532639]
[1749898253904,0.78939,2532.6,2532.5,24.83632639]
[1749898261710,0.78939,2532.6,2532.5,24.04692639]
[1749898262011,0.78939,2532.6,2532.5,24.83634639]
[1749898263310,0.78939,2532.6,2532.5,0.79534639]
[1749898263509,0.78939,2532.6,2532.5,24.83534639]
[1749898266215,0.85748268,2532.6,2532.5,24.83534639]
[1749898267119,0.85748268,2532.6,2532.5,0.00592639]
[1749898268020,1.51318268,2532.6,2532.5,0.00592639]
[1749898268426,1.51318268,2532.6,2532.5,0.79534639]
[1749898268619,1.51318268,2532.6,2532.5,0.00592639]
[1749898269416,0.85748268,2532.6,2532.5,0.00592639]
[1749898269725,0.85748268,2532.6,2532.5,0.79534639]
[1749898270021,0.85748268,2532.6,2532.5,0.00592639]
[1749898270224,0.85748268,2532.6,2532.5,0.79534639]
[1749898287133,0.85748268,2532.6,2532.5,2.36397621]
[1749898287333,0.85748268,2532.6,2532.5,0.79534639]
[1749898288135,0.85748268,2532.6,2532.5,0.00592639]
[1749898290335,2.23348268,2532.6,2532.5,0.00592639]
[1749898290530,4.69718268,2532.6,2532.5,0.00592639]
[1749898293330,0.78948,2532.3,2532.2,2.24242982]
[1749898293534,5.18148,2532.4,2532.0,1.56862982]
[1749898293733,0.78958,2532.0,2531.9,26.39222982]
[1749898294035,0.78958,2532.0,2531.9,0.7896]
[1749898295634,0.78961,2531.9,2531.8,36.93182982]
[1749898296136,0.78961,2531.9,2531.8,37.72143982]
[1749898296337,0.7896,2532.0,2531.9,0.78957]
[1749898296737,0.78961,2531.9,2531.8,11.3292]
[1749898296937,0.78961,2531.9,2531.8,35.3642]
[1749898297839,0.78961,2531.9,2531.8,36.15381]
[1749898300839,0.78961,2531.9,2531.8,12.11881]
[1749898301038,0.78961,2531.9,2531.8,34.0696]
[1749898301239,0.78961,2531.9,2531.8,10.0346]
[1749898301439,0.78961,2531.9,2531.8,34.0696]
[1749898301740,0.78961,2531.9,2531.8,27.8796]
[1749898302142,0.78961,2531.9,2531.8,27.2428]
[1749898302341,0.78964,2531.8,2531.7,0.00592639]
[1749898302736,0.78964,2531.8,2531.7,24.83059639]
[1749898302937,0.78964,2531.8,2531.7,24.04092639]
[1749898303135,0.78964,2531.8,2531.7,24.83059639]
[1749898310847,0.85773268,2531.8,2531.7,24.83059639]
[1749898319051,0.00592639,2532.2,2532.1,0.78954]
[1749898319253,0.00592639,2532.2,2532.1,26.39101754]
[1749898319449,0.00592639,2532.2,2532.1,24.82454]
[1749898319753,0.00592639,2532.2,2532.1,28.45895632]
[1749898320547,0.00592639,2532.2,2532.1,26.10924]
[1749898320857,0.00592639,2532.2,2532.1,28.4583494]
[1749898321554,0.00592639,2532.2,2532.1,26.10924]
[1749898321756,0.00592639,2532.2,2532.1,28.45726543]
[1749898323052,0.00592639,2532.2,2532.1,31.66506543]
[1749898323562,0.00592639,2532.2,2532.1,36.66506543]
[1749898324558,3.2078,2532.8,2532.6,0.78936]
[1749898324746,3.99713,2532.8,2532.7,24.6942]
[1749898324944,0.78929,2533.0,2532.9,0.78926]
[1749898325150,0.78929,2533.0,2532.9,24.82026]
[1749898326052,0.78929,2533.0,2532.9,24.031]
[1749898326853,0.78929,2533.0,2532.9,24.8203]
[1749898328458,0.78929,2533.0,2532.9,24.031]
[1749898328961,0.658,2533.5,2532.9,24.031]
[1749898328962,1.97214,2534.4,2533.2,3.2078]
[1749898329158,1.2875,2534.3,2533.8,3.2078]
[1749898329349,0.78899,2533.9,2533.8,3.2078]
[1749898329553,0.78899,2533.9,2533.7,24.301]
[1749898330451,1.30942639,2534.1,2533.7,24.301]
[1749898330853,0.78895,2534.0,2533.7,25.09004]
[1749898331059,0.78899,2533.9,2533.7,25.09004]
[1749898331555,0.78898,2533.9,2533.8,3.2078]
[1749898331761,1.30942639,2534.1,2533.8,3.2078]
[1749898332458,0.78898,2534.0,2533.8,3.2078]
[1749898332961,0.6481,2533.9,2533.8,3.99681]
[1749898333155,1.43708,2533.9,2533.8,3.2078]
[1749898337956,6.43708,2533.9,2533.8,3.2078]
[1749898338363,1.43708,2533.9,2533.8,3.2078]
[1749898339366,0.78905,2533.7,2533.6,0.78906]
[1749898341068,0.78908,2533.6,2533.5,4.00280639]
[1749898341566,0.78908,2533.6,2533.5,3.21372639]
[1749898349582,0.78917,2533.3,2533.2,3.2078]
[1749898349885,0.78917,2533.3,2533.2,3.997]
[1749898350084,0.78917,2533.3,2533.2,3.2078]
[1749898355488,0.85726268,2533.3,2533.2,3.2078]
[1749898355987,0.85726268,2533.3,2533.2,5.2605]
[1749898356189,0.85726268,2533.3,2533.2,4.4713]
[1749898356489,0.85726268,2533.3,2533.2,5.2605]
[1749898356783,0.85726268,2533.3,2533.2,4.4713]
[1749898356983,0.85726268,2533.3,2533.2,3.2078]
[1749898357188,0.78923,2533.1,2533.0,0.65252639]
[1749898361792,0.78926,2533.0,2532.9,3.2078]
[1749898370711,0.85735268,2533.0,2532.9,3.2078]
[1749898372500,0.85735268,2533.0,2532.9,4.5359]
[1749898372902,0.06809268,2533.0,2532.9,5.32519]
[1749898373106,0.06809268,2533.0,2532.9,10.32519]
[1749898373501,0.06809268,2533.0,2532.9,5.32519]
[1749898373909,0.06809268,2533.0,2532.9,10.32519]
[1749898374806,0.78919,2533.3,2533.2,0.78918]
[1749898375003,0.78917,2533.3,2533.2,10.29599]
[1749898375204,0.78915,2533.4,2533.3,0.78915]
[1749898375396,0.78915,2533.4,2533.3,1.47215]
[1749898375599,0.78915,2533.4,2533.3,7.81225]
[1749898376404,0.78915,2533.4,2533.3,2.81225]
[1749898377196,0.78915,2533.4,2533.3,2.0231]
[1749898377402,0.78915,2533.4,2533.3,2.81227]
[1749898378201,0.78915,2533.4,2533.3,2.0231]
[1749898381407,0.78917,2533.3,2533.2,3.2078]
[1749898384912,0.85726268,2533.3,2533.2,3.2078]
[1749898386110,2.04107268,2533.3,2532.9,3.8565]
[1749898386311,0.78926,2533.0,2532.9,3.2078]
[1749898387513,0.78929,2532.9,2532.8,3.8497]
[1749898387712,0.78929,2533.0,2532.9,0.78928]
[1749898387914,0.78929,2533.0,2532.9,1.45838]
[1749898388120,0.78929,2533.0,2532.9,2.76288]
[1749898388813,0.78929,2533.0,2532.9,1.9736]
[1749898390320,0.78929,2533.0,2532.9,2.76289]
[1749898392217,0.78929,2533.0,2532.9,1.9736]
[1749898393431,0.78929,2533.0,2532.9,2.76289]
[1749898393633,0.78929,2533.0,2532.9,1.9736]
[1749898394028,0.78929,2532.9,2532.8,3.8497]
[1749898394232,0.78932,2532.8,2532.7,0.00592639]
[1749898394424,2.81502,2532.8,2532.7,0.00592639]
[1749898401141,2.88311268,2532.8,2532.7,0.00592639]
[1749898406740,1.52221268,2532.8,2532.7,0.00592639]
[1749898408641,2.16381268,2532.8,2532.7,0.00592639]
[1749898414138,0.85741268,2532.8,2532.7,0.00592639]
[1749898414346,0.85741268,2532.8,2532.7,1.34522639]
[1749898416945,0.06809268,2532.8,2532.7,7.13458639]
[1749898417340,0.06809268,2532.8,2532.7,8.69402556]
[1749898417839,11.42551,2533.6,2533.2,0.7892]
[1749898418039,11.42551,2533.6,2533.3,2.6246]
[1749898418040,0.78914,2533.4,2533.3,2.6246]
[1749898426147,0.78914,2533.4,2533.3,0.6608]
[1749898427048,0.78914,2533.4,2533.3,3.8686]
[1749898429541,0.85723268,2533.4,2533.3,3.8686]
[1749898431344,0.85723268,2533.4,2533.3,5.1977]
[1749898434558,0.85723268,2533.4,2533.3,5.98687]
[1749898436259,0.85723268,2533.4,2533.3,5.1977]
[1749898437154,0.7892,2533.2,2533.1,0.6619]
[1749898437455,0.78923,2533.1,2533.0,3.2078]
[1749898437651,1.45603,2533.1,2533.0,3.2078]
[1749898439953,0.78923,2533.1,2533.0,3.2078]
[1749898441955,0.78923,2533.1,2533.0,3.99706]
[1749898443049,0.78923,2533.1,2533.0,3.2078]
[1749898443752,0.78923,2533.1,2533.0,4.5088]
[1749898444158,0.78923,2533.1,2533.0,5.29806]
[1749898444355,0.78923,2533.1,2533.0,4.5088]
[1749898444861,0.78922,2533.2,2533.0,4.5088]
[1749898445160,0.78922,2533.2,2533.1,2.06482]
[1749898445351,0.78922,2533.2,2533.1,1.2756]
[1749898446560,0.78922,2533.2,2533.1,2.06483]
[1749898446960,0.78919,2533.3,2533.1,1.2756]
[1749898447260,0.78919,2533.3,2533.2,1.44836]
[1749898447651,0.78919,2533.3,2533.2,2.72396]
[1749898452052,0.78919,2533.3,2533.2,5.93176]
[1749898453258,0.78919,2533.3,2533.2,3.867]
[1749898454560,0.78919,2533.3,2533.2,4.6562]
[1749898455359,0.78919,2533.3,2533.2,3.867]
[1749898457759,0.78919,2533.3,2533.2,4.6562]
[1749898459769,0.78919,2533.3,2533.2,3.867]
[1749898460066,0.85728268,2533.3,2533.2,4.6562]
[1749898460364,0.85728268,2533.3,2533.2,3.867]
[1749898460554,0.85728268,2533.3,2533.2,4.6562]
[1749898460754,0.85728268,2533.3,2533.2,3.867]
[1749898460954,0.85728268,2533.3,2533.2,3.2078]
[1749898461357,1.50728268,2533.3,2533.2,3.2078]
[1749898461764,0.85728268,2533.3,2533.2,3.2078]
[1749898462867,0.85728268,2533.3,2533.2,3.997]
[1749898463066,0.85728268,2533.3,2533.2,3.2078]
[1749898463467,0.85728268,2533.3,2533.2,3.873]
[1749898463864,0.85728268,2533.3,2533.2,4.6622]
[1749898464873,0.85728268,2533.3,2533.2,3.873]
[1749898466172,0.85728268,2533.3,2533.2,4.6622]
[1749898466470,0.85728268,2533.3,2533.2,3.873]
[1749898466670,0.85728268,2533.3,2533.2,4.6622]
[1749898466871,0.85728268,2533.3,2533.2,3.873]
[1749898467172,0.85728268,2533.3,2533.2,3.2078]
[1749898467471,3.39787268,2533.3,2532.9,2.35706683]
[1749898467667,0.78926,2533.0,2532.9,2.35706683]
[1749898470171,0.78929,2532.9,2532.8,5.46258683]
[1749898470366,0.78929,2532.9,2532.8,3.8948]
[1749898471477,0.78929,2532.9,2532.8,4.68412]
[1749898473079,0.78929,2532.9,2532.8,3.8948]
[1749898474778,0.78929,2532.9,2532.8,4.68412]
[1749898475676,0.78929,2532.9,2532.8,3.8948]
[1749898475883,0.78929,2532.9,2532.8,3.2078]
[1749898476177,0.78929,2532.9,2532.8,3.99712]
[1749898476376,0.85738268,2532.9,2532.8,3.99712]
[1749898476682,0.85738268,2532.9,2532.8,3.2078]
[1749898478083,0.85738268,2532.9,2532.8,3.99712]
[1749898478878,0.85738268,2532.9,2532.8,3.2078]
[1749898479183,0.78932,2532.8,2532.7,0.00592639]
[1749898479379,1.46002,2532.8,2532.7,0.00592639]
[1749898481082,1.46002,2532.8,2532.7,0.79528639]
[1749898481579,1.46002,2532.8,2532.7,0.00592639]
[1749898482177,1.46002,2532.8,2532.7,0.79528639]
[1749898482879,1.46002,2532.8,2532.7,0.00592639]
[1749898483279,0.78932,2532.8,2532.7,0.00592639]
[1749898485187,0.78932,2532.8,2532.7,3.21372639]
[1749898486789,0.78932,2532.8,2532.7,4.00308639]
[1749898487581,0.85739268,2532.9,2532.8,0.78932]
[1749898487888,0.85738268,2532.9,2532.8,0.78932]
[1749898488089,0.06809268,2532.9,2532.8,2.75042]
[1749898488588,0.85738268,2532.9,2532.8,2.75042]
[1749898488791,0.06809268,2532.9,2532.8,2.75042]
[1749898489491,0.78924,2533.1,2533.0,0.78926]
[1749898489789,0.78924,2533.1,2533.0,3.99706]
[1749898490190,0.78924,2533.1,2533.0,5.31226]
[1749898492093,0.78922,2533.2,2533.1,0.78921]
[1749898492591,0.78923,2533.1,2533.0,5.31224]
[1749898497494,0.78923,2533.2,2533.1,0.78919]
[1749898497994,0.78923,2533.2,2533.1,2.16259]
[1749898499500,0.7892,2533.3,2533.2,0.78917]
[1749898499692,0.7892,2533.3,2533.2,1.47867]
[1749898502197,0.78914,2533.5,2533.4,0.78911]
[1749898502897,0.7891,2533.6,2533.5,0.78906]
[1749898503094,0.78903,2533.8,2533.7,0.78901]
[1749898504295,0.78903,2533.8,2533.7,2.10941]
[1749898505298,0.78903,2533.8,2533.7,1.3204]
[1749898505498,0.78903,2533.8,2533.7,0.78904]
[1749898508004,0.78904,2533.7,2533.6,3.99685]
[1749898509097,1.97272,2533.6,2533.3,3.2078]